Workbook

Sheet 2008
A1: AMEOJAPÃO - EXERCÍCIO 2008
A2: DATA | B2: HISTÓRICO | C2: ENTRADA | D2: SAÍDA | E2: SALDO
A3: 2010-02-15 | B3: ADELIA | C3: R$ 50.00
B4: ALDAIR | C4: R$ 50.00
B5: JOÃO FERRAZ | C5: R$ 50.00
B6: JONAS | C6: R$ 50.00
B7: TAKITA | C7: R$ 50.00
B8: KEN | C8: R$ 50.00
B9: LEONILDA | C9: R$ 50.00
B10: PEDRO POTIGUARA | C10: R$ 50.00
B11: RAIMUNDO DANTAS | C11: R$ 50.00
B12: RUBERVAL | C12: R$ 50.00
B13: SANDRA | C13: R$ 50.00
B14: VLADIMIR | C14: R$ 50.00
A15: 2010-03-26 | B15: PAULO FARIAS | C15: R$ 50.00
B16: PAULO RIBEIRO | C16: R$ 50.00
B17: TSUYOSHI | C17: R$ 50.00
A18: 2010-05-02 | B18: JAN | C18: R$ 50.00
A19: 2010-05-14 | B19: ROSANA | C19: R$ 50.00
A20: 2010-08-19 | B20: EDINA NINOMIYA | C20: R$ 50.00
B21: LEANDRO HATANO | C21: R$ 50.00
B22: Ma. EUGENIA | C22: R$ 50.00
B23: MICHIO | C23: R$ 50.00
B24: SOFIA | C24: R$ 50.00
A25: 2010-10-22 | B25: FABIOLA | C25: R$ 50.00
B26: TOTAL | C26: =SUM(C3:C25) -> R$ 1,150.00 | D26: R$ 0.00 | E26: =C26-D26 -> R$ 1,150.00

Sheet 2009
A1: AMEOJAPÃO - EXERCÍCIO 2009
A2: DATA | B2: HISTÓRICO | C2: ENTRADA | D2: SAÍDA | E2: SALDO
A3: 2010-01-01 | B3: SALDO DE 2008 | C3: 0.00 | D3: 0.00 | E3: 1,150.00
B4: RAIMUNDO DANTAS | C4: 50.00 | D4: 0.00 | E4: =C4+E3 -> 1,200.00

Sheet 2010
A1: AMEOJAPÃO - EXERCÍCIO 2010
A2: DATA | B2: HISTÓRICO | C2: ENTRADA | D2: SAÍDA | E2: SALDO
A3: 2010-01-01 | B3: SALDO DE 2009 | C3: 0.00 | D3: 0.00 | E3: ='2009'!E4 -> 1,200.00
A4: 2010-02-01 | B4: Reconhecimento de firma | C4: 0.00 | D4: 5.40 | E4: =C4+E3-D4 -> 1,194.60
A5: 2010-02-08 | B5: Registro da AMEOJAPAO | C5: 0.00 | D5: 399.00 | E5: =C5+E4-D5 -> 795.60
B6: Transporte de Jonas Gomes | C6: 0.00 | D6: 45.60 | E6: =C6+E5-D6 -> 750.00
A7: 2010-02-27 | B7: Doação do Leandro Hatano | C7: 50.00 | D7: 0.00 | E7: =C7+E6-D7 -> 800.00

Sheet 2011
A1: AMEOJAPÃO - EXERCÍCIO 2011
A2: DATA | B2: HISTÓRICO | C2: ENTRADA | D2: SAÍDA | E2: SALDO
A3: 2010-01-01 | B3: SALDO DE 2010 | E3: ='2010'!E7 -> 800.00
A4: 2011-01-29 | B4: Danilo de Santana Shui | C4: 50.00 | E4: 850.00

Sheet 2012
A1: AMEOJAPÃO - EXERCÍCIO 2012
A2: DATA | B2: HISTÓRICO | C2: ENTRADA | D2: SAÍDA | E2: SALDO
A3: 2010-01-01 | B3: SALDO DE 2011 | E3: ='2011'!E4 -> R$ 850.00
A4: 2013-03-03 | B4: Evento Kizuna | C4: R$ 2,002.11 | E4: =E3+C4-D4 -> R$ 2,852.11
A5: 2013-07-20 | B5: Registro da Ata | D5: R$ 133.00 | E5: =E4+C5-D5 -> R$ 2,719.11

Sheet 2013
A1: AMEOJAPÃO - EXERCÍCIO 2013
A2: DATA | B2: HISTÓRICO | C2: ENTRADA | D2: SAÍDA | E2: SALDO
A3: 2010-01-01 | B3: SALDO DE 2012 | C3: R$ 2,719.11 | E3: ='2012'!E5 -> R$ 2,719.11
B4: Doação | C4: R$ 0.00 | D4: R$ 2,050.00 | E4: =E3+C4-D4 -> R$ 669.11

Sheet 2018
A1: AMEOJAPÃO - EXERCÍCIO 2018
A2: DATA | B2: HISTÓRICO | C2: ENTRADA | D2: SAÍDA | E2: SALDO
A3: 2010-01-01 | B3: SALDO | E3: ='2013'!E4 -> R$ 669.11
A4: 2018-03-08 | B4: Adelia | C4: R$ 50.00 | E4: =E3+C4-D4 -> R$ 719.11
B5: Joao Feraz | C5: R$ 50.00 | E5: R$ 769.11
B6: Rozana | C6: R$ 50.00 | E6: R$ 819.11
B7: Paulo | C7: R$ 50.00 | E7: R$ 869.11
B8: Vladimir | C8: R$ 50.00 | E8: R$ 919.11
B9: Mika | C9: R$ 50.00 | E9: R$ 969.11
B10: Sandra | C10: R$ 50.00 | E10: R$ 1,019.11
A12: Obs: | B12: De 2014 a 2017 não houve movimentação financeira

Sheet 2024
A1: AMEOJAPÃO - EXERCÍCIO 2024 - DIRETOR FINANCEIRO DANILO CHUI
A2: Total de Entradas | B2: =SUM(F4:F7) -> R$ 1,019.11 | C2: Total de Saídas | D2: =SUM(G4:G7) -> R$ 598.50 | E2: Saldo | F2: =B2-D2 -> R$ 420.61
A3: Data | B3: Histórico | F3: Entrada | G3: Saída | H3: Saldo
A4: 2024-04-29 | B4: Transferência do saldo de gestões anteriores | F4: R$ 1,019.11 | G4: R$ 0.00 | H4: =F4-G4 -> R$ 1,019.11
A5: 2024-05-02 | B5: Plano anual de hospedagem Wix (Premium plan unlimited) - reembolso ao Jonas Gomes da Siva | F5: R$ 0.00 | G5: R$ 228.00 | H5: =H4+F5-G5 -> R$ 791.11
A6: 2024-05-02 | B6: Plano anual domínio do site Wix (ameojapao.org) - reembolso ao Jonas Gomes da Silva | F6: R$ 0.00 | G6: R$ 34.50 | H6: =H5+F6-G6 -> R$ 756.61
A7: 2024-05-02 | B7: Plano anual e-mail e conta Google - reembolso ao Jonas Gomes da Silva | F7: R$ 0.00 | G7: R$ 336.00 | H7: =H6+F7-G7 -> R$ 420.61

Sheet 2025
A1: AMEOJAPÃO - EXERCÍCIO 2025 - DIRETOR FINANCEIRO DANILO CHUI - V5 - 29/11/25
A2: Total de Entradas | B2: =SUM(F4:F50) -> R$ 2,222.13 | C2: Total de Saídas | D2: =SUM(G4:G50) -> R$ 1,597.84 | E2: Saldo | F2: =B2-D2 -> R$ 624.29
A3: Data | B3: Histórico | F3: Entrada | G3: Saída | H3: Saldo
A4: 2025-01-01 | B4: Saldo de 2024 | F4: ='2024'!H7 -> R$ 420.61 | G4: R$ 0.00 | H4: ='2024'!F2:H2 -> R$ 420.61 | I4: 0 | J4: 0
A5: 2025-06-11 | B5: Plano anual e-mail e conta Google - reembolso ao Jonas Gomes da Silva | F5: R$ 0.00 | G5: R$ 336.00 | H5: =F5+H4-G5 -> R$ 84.61
A6: 2025-06-13 | B6: Teste do PIX - Jonas Gomes da Silva | F6: R$ 0.01 | G6: R$ 0.00 | H6: =H5+F6-G6 -> R$ 84.62
A7: 2025-06-13 | B7: Anuidade - Vladimir Takeda | F7: R$ 50.00 | G7: R$ 0.00 | H7: R$ 134.62
A8: 2025-06-13 | B8: Anuidade - Radrigo Dabela | F8: R$ 50.00 | G8: R$ 0.00 | H8: R$ 184.62
A9: 2025-06-13 | B9: Anuidade - Danilo Chui | F9: R$ 50.00 | G9: R$ 0.00 | H9: R$ 234.62
A10: 2025-06-13 | B10: Anuidade - Fabíola Chui | F10: R$ 50.00 | G10: R$ 0.00 | H10: R$ 284.62
A11: 2025-06-13 | B11: Anuidade - Takako Shima | F11: R$ 50.00 | G11: R$ 0.00 | H11: R$ 334.62
A12: 2025-06-14 | B12: Anuidade - Cristina Sambuichi | F12: R$ 50.00 | G12: R$ 0.00 | H12: R$ 384.62
A13: 2025-06-14 | B13: Anuidade - Rafael Lins | F13: R$ 50.00 | G13: R$ 0.00 | H13: R$ 434.62
A14: 2025-06-15 | B14: Anuidade - Lisa Ribeiro | F14: R$ 50.00 | G14: R$ 0.00 | H14: R$ 484.62
A15: 2025-06-15 | B15: Anuidade - Sylker Teles | F15: R$ 50.00 | G15: R$ 0.00 | H15: R$ 534.62
A16: 2025-06-15 | B16: Domínio do site, plano de hospedagem e teste PIX - reembolso ao Jonas Gomes da Silva | F16: R$ 0.00 | G16: R$ 471.01 | H16: R$ 63.61
A17: 2025-06-15 | B17: Anuidade - Claudio Nogueira | F17: R$ 50.00 | H17: R$ 113.61
A18: 2025-06-15 | B18: Anuidade - Adélia Miyamoto | F18: R$ 100.50 | H18: R$ 214.11
A19: 2025-06-15 | B19: Anuidade - Leonida Namiko | F19: R$ 50.00 | H19: R$ 264.11
A20: 2025-06-16 | B20: Anuidade - Katsuhito Takita | F20: R$ 50.00 | H20: R$ 314.11
A21: 2025-06-16 | B21: Anuidade - Claudio Nogueira | F21: R$ 50.00 | H21: R$ 364.11
A22: 2025-06-16 | B22: Anuidade - Nicolas Dias | F22: R$ 50.00 | H22: R$ 414.11
A23: 2025-06-16 | B23: Anuidade - Tiago Coutinho | F23: R$ 50.00 | H23: R$ 464.11
A24: 2025-06-18 | B24: Anuidade - Euler de Souza | F24: R$ 50.00 | H24: R$ 514.11
A25: 2025-06-18 | B25: Anuidade - Roberto Miyamoto | F25: R$ 50.00 | H25: R$ 564.11
A26: 2025-06-20 | B26: Anuidade - Rosana Zau Mafra | F26: R$ 100.00 | H26: R$ 664.11
A27: 2025-06-20 | B27: Anuidade - Kelly Ishigaki | F27: R$ 50.00 | H27: R$ 714.11
A28: 2025-06-23 | B28: Anuidade - Belisario Arce | F28: R$ 100.00 | H28: R$ 814.11
A29: 2025-06-23 | B29: Anuidade - Akira Suzuki | F29: R$ 100.00 | H29: R$ 914.11
A30: 2025-06-26 | B30: Anuidade - Paulo Ribeiro | F30: R$ 50.00 | H30: R$ 964.11
A31: 2025-06-26 | B31: Anuidade - Ruberval de Alcântara | F31: R$ 50.00 | H31: R$ 1,014.11
A32: 2025-07-01 | B32: Anuidade - Marcelino Cavalcante | F32: R$ 100.00 | H32: R$ 1,114.11
A33: 2025-07-01 | B33: Anuidade - Jonas Gomes | F33: R$ 100.00 | H33: R$ 1,214.11
A34: 2025-07-18 | B34: Anuidade - Ronaldo Bosco | F34: R$ 50.00 | H34: R$ 1,264.11
A35: 2025-07-22 | B35: Anuidade - Sayuri Shimizu | F35: R$ 50.00 | H35: R$ 1,314.11
A36: 2025-07-28 | B36: Pagamento de DAM para a PMM - Taxa de localização - Criação do CNPJ | G36: R$ 130.83 | H36: R$ 1,183.28
A37: 2025-07-28 | B37: Pagamento a Paulo de Souza Moreira por Serviços de criação do CNPJ e Inscrição Municipal da Associação | G37: R$ 350.00 | H37: R$ 833.28
A38: 2025-09-11 | B38: Pagamento a Carlos Alberto Eleres de Paula por aluguel de 16 mesas e 20 cadeiras para o evento Study in Japan | G38: R$ 210.00 | H38: R$ 623.28
A39: 2025-09-11 | B39: Doação - Jonas Gomes | F39: R$ 1.00 | H39: R$ 624.28
A40: 2025-11-24 | B40: Transferência teste de envio de pix para banco CORA | F40: R$ 0.01 | H40: R$ 624.29
A41: 2025-11-24 | B41: Doação de Takako Shima para ajudar no lançamento do ebook no dia 04/12/25 | F41: R$ 100.00 | H41: R$ 724.29
A42: 2025-11-29 | B42: Pagamento a Roberto Reis Vianna por impressão e entrega de banner 1,5 x 1,0 para divulgar o ebook | G42: R$ 100.00 | H42: R$ 624.29
